{"text_format":"3","workbook":"xlsx","n_sheets":2,"sheets":["Lista del docente"," Datos de la lista"],"not_rendered":{"defined_names":6},"read":"whole","date_system":"1900"}

{"sheet":"Lista del docente","index":0,"n_rows":10,"n_cols":10,"rows_kept":10,"merged":[[0,1,0,2],[0,4,0,8],[2,9,6,9]]}
[null,"Lista del docente",null,"Datos de la lista","Leyenda de colores para Estado se encuentra en esta celda: \"Pendiente\" en estilo Normal; \"En curso\" en R=91 G=133 B=49; \"Para hoy\" en R=118 G=88 B=0; \"Pausada\" en R=109 G=66 B=111; \"Completada\" en formato tachado; \"Cancelada\" en R=191 G=191 B=191, y \"Vencida\" en R=191 G=33 B=28."]
[null,"ELEMENTO","CATEGORÍA","FECHA DE INICIO","FECHA DE VENCIMIENTO","DÍAS RESTANTES","ESTADO","NOTAS"]
[null,"Organizar los cajones","Oficina",{"$f":"DATE(YEAR(TODAY()),MONTH(TODAY())-1,6)","v":"2018-04-06"},{"$f":"DATE(YEAR(TODAY()),MONTH(TODAY())-1,16)","v":"2018-04-16"},{"$f":"IFERROR(IF(COUNT(Lista[[#This Row],[FECHA DE INICIO]]:Lista[[#This Row],[FECHA DE VENCIMIENTO]])<>2,\"\",IF(OR(Lista[[#This Row],[ESTADO]]=\"Completada\",Lista[[#This Row],[ESTADO]]=\"Cancelada\",Lista[[#This Row],[ESTADO]]=\"Pausada\"),\"\",Lista[[#This Row],[FECHA DE VENCIMIENTO]]-TODAY())),\"\")","v":""},"Completada",null,null,"La segmentación del estado ocupa esta celda. Para filtrar la lista por estado, seleccione uno en la segmentación. Presione y mantenga presionada la tecla CTRL para seleccionar varias opciones."]
[null,"Pedir pegatinas","Suministros",{"$f":"DATE(YEAR(TODAY()),MONTH(TODAY())-1,11)","v":"2018-04-11"},{"$f":"DATE(YEAR(TODAY()),MONTH(TODAY())-1,21)","v":"2018-04-21"},{"$f":"IFERROR(IF(COUNT(Lista[[#This Row],[FECHA DE INICIO]]:Lista[[#This Row],[FECHA DE VENCIMIENTO]])<>2,\"\",IF(OR(Lista[[#This Row],[ESTADO]]=\"Completada\",Lista[[#This Row],[ESTADO]]=\"Cancelada\",Lista[[#This Row],[ESTADO]]=\"Pausada\"),\"\",Lista[[#This Row],[FECHA DE VENCIMIENTO]]-TODAY())),\"\")","v":""},"Completada"]
[null,"Limpiar y encerar los suelos","Otros",{"$f":"DATE(YEAR(TODAY()),MONTH(TODAY()-1),DAY(TODAY())-25)","v":"2018-04-15"},{"$f":"DATE(YEAR(TODAY()),MONTH(TODAY())-1,26)","v":"2018-04-26"},{"$f":"IFERROR(IF(COUNT(Lista[[#This Row],[FECHA DE INICIO]]:Lista[[#This Row],[FECHA DE VENCIMIENTO]])<>2,\"\",IF(OR(Lista[[#This Row],[ESTADO]]=\"Completada\",Lista[[#This Row],[ESTADO]]=\"Cancelada\",Lista[[#This Row],[ESTADO]]=\"Pausada\"),\"\",Lista[[#This Row],[FECHA DE VENCIMIENTO]]-TODAY())),\"\")","v":""},"Completada"]
[null,"Hacer etiquetas de nombre","Suministros",{"$f":"DATE(YEAR(TODAY()),MONTH(TODAY())-1,21)","v":"2018-04-21"},{"$f":"DATE(YEAR(TODAY()),MONTH(TODAY())-1,1)","v":"2018-04-01"},{"$f":"IFERROR(IF(COUNT(Lista[[#This Row],[FECHA DE INICIO]]:Lista[[#This Row],[FECHA DE VENCIMIENTO]])<>2,\"\",IF(OR(Lista[[#This Row],[ESTADO]]=\"Completada\",Lista[[#This Row],[ESTADO]]=\"Cancelada\",Lista[[#This Row],[ESTADO]]=\"Pausada\"),\"\",Lista[[#This Row],[FECHA DE VENCIMIENTO]]-TODAY())),\"\")","v":""},"Pausada"]
[null,"Calificar los informes del trimestre","Evaluaciones",{"$f":"DATE(YEAR(TODAY()),MONTH(TODAY())-1,26)","v":"2018-04-26"},{"$f":"TODAY()-5","v":"2018-05-05"},{"$f":"IFERROR(IF(COUNT(Lista[[#This Row],[FECHA DE INICIO]]:Lista[[#This Row],[FECHA DE VENCIMIENTO]])<>2,\"\",IF(OR(Lista[[#This Row],[ESTADO]]=\"Completada\",Lista[[#This Row],[ESTADO]]=\"Cancelada\",Lista[[#This Row],[ESTADO]]=\"Pausada\"),\"\",Lista[[#This Row],[FECHA DE VENCIMIENTO]]-TODAY())),\"\")","v":-5},"Vencida"]
[null,"Recordatorio de papeles de autorización por correo electrónico","Llamadas",{"$f":"DATE(YEAR(TODAY()),MONTH(TODAY()),1)","v":"2018-05-01"},{"$f":"TODAY()","v":"2018-05-10"},{"$f":"IFERROR(IF(COUNT(Lista[[#This Row],[FECHA DE INICIO]]:Lista[[#This Row],[FECHA DE VENCIMIENTO]])<>2,\"\",IF(OR(Lista[[#This Row],[ESTADO]]=\"Completada\",Lista[[#This Row],[ESTADO]]=\"Cancelada\",Lista[[#This Row],[ESTADO]]=\"Pausada\"),\"\",Lista[[#This Row],[FECHA DE VENCIMIENTO]]-TODAY())),\"\")","v":""},"Cancelada"]
[null,"Calificar las pruebas orales","Oficina",{"$f":"DATE(YEAR(TODAY()),MONTH(TODAY()),7)","v":"2018-05-07"},{"$f":"DATE(YEAR(TODAY()),MONTH(TODAY()),17)","v":"2018-05-17"},{"$f":"IFERROR(IF(COUNT(Lista[[#This Row],[FECHA DE INICIO]]:Lista[[#This Row],[FECHA DE VENCIMIENTO]])<>2,\"\",IF(OR(Lista[[#This Row],[ESTADO]]=\"Completada\",Lista[[#This Row],[ESTADO]]=\"Cancelada\",Lista[[#This Row],[ESTADO]]=\"Pausada\"),\"\",Lista[[#This Row],[FECHA DE VENCIMIENTO]]-TODAY())),\"\")","v":7},"En curso"]
[null,"Sacar punta a los lápices","Suministros",{"$f":"DATE(YEAR(TODAY()),MONTH(TODAY()),11)","v":"2018-05-11"},{"$f":"DATE(YEAR(TODAY()),MONTH(TODAY()),10)","v":"2018-05-10"},{"$f":"IFERROR(IF(COUNT(Lista[[#This Row],[FECHA DE INICIO]]:Lista[[#This Row],[FECHA DE VENCIMIENTO]])<>2,\"\",IF(OR(Lista[[#This Row],[ESTADO]]=\"Completada\",Lista[[#This Row],[ESTADO]]=\"Cancelada\",Lista[[#This Row],[ESTADO]]=\"Pausada\"),\"\",Lista[[#This Row],[FECHA DE VENCIMIENTO]]-TODAY())),\"\")","v":0},"En curso"]

{"sheet":" Datos de la lista","index":1,"n_rows":13,"n_cols":3,"rows_kept":13}
[null,"Datos de la lista","Lista del docente"]
[null,"Categoría"]
[null,"Oficina"]
[null,"Suministros"]
[null,"Compras"]
[null,"Llamadas"]
[null,"Ideas nuevas"]
[null,"Evaluaciones"]
[null,"Equipo"]
[null,"Intervenciones"]
[null,"Ordenador"]
[null,"Personal"]
[null,"Otros"]